{"text_format":"1","workbook":"xlsx","n_sheets":3,"sheets":["Kalibrierschein","Test","Hilfsdaten"],"not_rendered":{"charts":7,"images":1,"macros":1,"external_links":0,"defined_names":0,"comments":0,"pivot_tables":0},"unopened":[],"bounds":{"document_bytes":16777216,"sheet_cells":100000,"rows_first":2000,"rows_last":500,"rows_between":2000,"halvings":0,"cell_chars":16384,"cell_head_chars":4096},"cells_cut":0,"cells_raw":0,"read":"whole","date_system":"1900"}

{"sheet":"Kalibrierschein","index":0,"n_rows":20,"n_cols":84,"rows_kept":20,"cut":false,"hidden":false,"merged":[[0,0,1,40],[3,48,3,56],[3,28,3,46],[2,0,2,15],[2,17,2,27],[3,0,3,15],[3,17,3,27],[2,28,2,46],[2,48,2,56],[13,0,13,7],[6,0,6,27],[6,29,6,56],[7,9,7,27],[8,9,8,27],[9,9,9,27],[10,9,10,27],[11,9,11,27],[12,9,12,27],[13,9,13,27],[10,0,10,7],[9,0,9,7],[8,0,8,7],[7,0,7,7],[11,0,11,7],[12,0,12,7],[13,29,13,36],[7,38,7,56],[8,38,8,56],[9,38,9,56],[10,38,10,56],[11,38,11,56],[12,38,12,56],[13,38,13,56],[7,29,7,36],[8,29,8,36],[9,29,9,36],[10,29,10,36],[11,29,11,36],[12,29,12,36],[16,38,16,56],[17,38,17,56],[19,0,23,27],[19,29,23,56],[4,0,4,15],[4,17,4,27],[4,28,4,46],[4,48,4,56],[15,0,15,27],[15,29,15,56],[16,0,16,7],[17,0,17,7],[16,9,16,27],[17,9,17,27],[16,29,16,36],[17,29,17,36]]}
["Werkskalibrierschein / Factory calibration certificate"]
[]
["Kalibrierschein-Nr. / Certificate no.",null,null,null,null,null,null,null,null,null,null,null,null,null,null,null,":","QM-WKS-250001",null,null,null,null,null,null,null,null,null,null,"Kalibrierdatum / Calibration date",null,null,null,null,null,null,null,null,null,null,null,null,null,null,null,null,null,null,":","2025-12-17"]
["Durchgeführt von / Performed by",null,null,null,null,null,null,null,null,null,null,null,null,null,null,null,":","M. Kästner",null,null,null,null,null,null,null,null,null,null,"Kalibrierintervall / Calibration intervall",null,null,null,null,null,null,null,null,null,null,null,null,null,null,null,null,null,null,":","12 Monate"]
["Entscheidungsregel / Decision rule",null,null,null,null,null,null,null,null,null,null,null,null,null,null,null,":","MMR-QM-WKS-R-50",null,null,null,null,null,null,null,null,null,null,"Risiko1 / Risk1",null,null,null,null,null,null,null,null,null,null,null,null,null,null,null,null,null,null,":",0.5]
[]
["Messmittel (DE)",null,null,null,null,null,null,null,null,null,null,null,null,null,null,null,null,null,null,null,null,null,null,null,null,null,null,null,null,"Measuring equipment (EN)"]
["Bezeichnung",null,null,null,null,null,null,null,":","Elektronische Außenschnelltaster",null,null,null,null,null,null,null,null,null,null,null,null,null,null,null,null,null,null,null,"Designation",null,null,null,null,null,null,null,":","Electronic external quicktest",null,null,null,null,null,null,null,null,null,null,null,null,null,null,null,null,null,null,null,null,null,null,null,null,null,null,null,null,null,null,null,null,null,null,null,null,null,null,null,null,null,null,null,null,"1 Risiko für Falsch-Positive Bewertung (Risiko für Lage des wahren Wertes außerhalb der Toleranzgrenze)"]
["Hersteller",null,null,null,null,null,null,null,":","Kroeplin",null,null,null,null,null,null,null,null,null,null,null,null,null,null,null,null,null,null,null,"Manufacturer",null,null,null,null,null,null,null,":",{"$f":"J9","v":"Kroeplin"}]
["Typ",null,null,null,null,null,null,null,":","C4R50",null,null,null,null,null,null,null,null,null,null,null,null,null,null,null,null,null,null,null,"Model",null,null,null,null,null,null,null,":",{"$f":"J10","v":"C4R50"}]
["Seriennummer",null,null,null,null,null,null,null,":","RC16U237",null,null,null,null,null,null,null,null,null,null,null,null,null,null,null,null,null,null,null,"Serial number",null,null,null,null,null,null,null,":","RC16U237"]
["Messbereich",null,null,null,null,null,null,null,":","0 - 50",null,null,null,null,null,null,null,null,null,null,null,null,null,null,null,null,null,null,null,"Range",null,null,null,null,null,null,null,":","0 - 50"]
["Auflösung",null,null,null,null,null,null,null,":",0.01,null,null,null,null,null,null,null,null,null,null,null,null,null,null,null,null,null,null,null,"Resolution",null,null,null,null,null,null,null,":",0.01]
["Einheit",null,null,null,null,null,null,null,":","mm",null,null,null,null,null,null,null,null,null,null,null,null,null,null,null,null,null,null,null,"Unit",null,null,null,null,null,null,null,":","mm"]
[]
["Kalibrierbedingungen (DE)",null,null,null,null,null,null,null,null,null,null,null,null,null,null,null,null,null,null,null,null,null,null,null,null,null,null,null,null,"Calibration conditions (EN)"]
["Temperatur",null,null,null,null,null,null,null,":","20,0°C",null,null,null,null,null,null,null,null,null,null,null,null,null,null,null,null,null,null,null,"Temperature",null,null,null,null,null,null,null,":",{"$f":"J17","v":"20,0°C"}]
["Ort ",null,null,null,null,null,null,null,":","Messraum, Nordstr.3, 06667 Goseck",null,null,null,null,null,null,null,null,null,null,null,null,null,null,null,null,null,null,null,"Location",null,null,null,null,null,null,null,":","Measuring room, Nordstr. 3, 06667 Goseck"]
[]
["Die Prüfung erfolgt nach Vorgaben der VDI/VDE/DGQ 2618 - Blatt 9.1 Dieser Kalibrierschein darf nur vollständig und unverändert weiterverbreitet werden. Die eingesetzten Normale sind auf nationale Normale zur Darstellung der Einheiten in Übereinstimmung mit dem Internationalen Einheitensystem (SI) rückgeführt. Die Messergebnisse gelten zum Zeitpunkt der Kalibrierung.",null,null,null,null,null,null,null,null,null,null,null,null,null,null,null,null,null,null,null,null,null,null,null,null,null,null,null,null,"The measurement was conducted following the guidelines of VDI/VD/IDGQ 2618 - part 9. 1. This calibration certificate may not be reproduced other than in full. The used calibration standards are traced to national standards. which realize the units of measurement according to the International System of\nUnits (SI). The test results are valid at the moment of calibration."]

{"sheet":"Test","index":1,"n_rows":17,"n_cols":17,"rows_kept":17,"cut":false,"hidden":false,"merged":[]}
[]
[]
[]
[]
[]
[]
[]
[null,null,"Soll ","Min.","Ist","Max.","Abw.","+/- U","+/- U","Breite Toleranz","Breite Ist-Wert","Start Unsicherheit","Breite Unsicherheit"]
[null,null,"mm","mm","mm","mm","µm","µm","mm"]
[]
[null,null,41.3,41.26,41.29,41.34,{"$f":"(E11-C11)*1000","v":-9.9999999999980105},{"$f":"30+(30*C11/1000)","v":31.239000000000001},{"$f":"H11/1000","v":3.1238999999999999E-2},{"$f":"F11-D11","v":8.00000000000054E-2},1E-3,{"$f":"E11-I11","v":41.258761},{"$f":"I11*2","v":6.2477999999999999E-2},{"$f":"D11","v":41.26},{"$f":"F11-D11","v":8.00000000000054E-2},{"$f":"(E11-I11)-D11","v":-1.2389999999982138E-3},{"$f":"I11*2","v":6.2477999999999999E-2}]
[null,null,41.3,41.26,41.28,41.34,{"$f":"(E12-C12)*1000","v":-19.999999999996021},{"$f":"30+(30*C12/1000)","v":31.239000000000001},{"$f":"H12/1000","v":3.1238999999999999E-2}]
[null,null,41.3,41.26,41.28,41.34,-19.999999999996021,31.239000000000001,3.1238999999999999E-2]
[null,null,131.4,131.36000000000001,131.41,131.44,9.9999999999909051,33.942,3.3942E-2]
[null,null,131.4,131.36000000000001,131.38999999999999,131.44,-10.000000000019327,33.942,3.3942E-2]
[null,null,281.2,281.16000000000003,281.20999999999998,281.24,9.9999999999909051,38.436,3.8435999999999998E-2]
[null,null,281.2,281.16000000000003,281.19,281.24,-9.9999999999909051,38.436,3.8435999999999998E-2]

{"sheet":"Hilfsdaten","index":2,"n_rows":1,"n_cols":8,"rows_kept":1,"cut":false,"hidden":false,"merged":[]}
["Zeile","Start Toleranz (Min)","Breite Toleranz (Max-Min)","Start Ist","Breite Ist","U in mm","Start Unsicherheit (Ist-U)","Breite Unsicherheit (2*U)"]